Cogmind - Beta 16 *** ADVENTURER MODE // 2025.12.25 @ 21:04:58 Player: Gentle Jesus Result: Destroyed self with Supercharged Sigix Terminator Performance ------------- Evolutions (9) 4500 Regions Visited (21) 4200 Robots Destroyed (120) 600 Value Destroyed (5267) 5267 Prototype IDs (25) 500 Alien Tech Used (10) 2000 Bonus (13626) 13626 TOTAL SCORE: 30693 Bonus ------- High Alert Combat Kills 24 Follower Combat Kills 102 Delivered SUBCON Basin 2000 Met Warlord at Base 500 MAIN.C Attacked Warlord 500 Found Hidden Lab 3000 Used Core Reset Matrix 3000 Met Warlord at Research 2000 Invited to Help at Command 2000 Pursued by Intercept 500 Cogmind --------- Core Integrity 0/1600 Matter 265/300 Energy 98/100 System Corruption 9% Temperature Cool (0) Movement Core (50) Location -1/Access Parts ------- > --- POWER (2) -------- (None) > --- PROPULSION (7) --- (None) > --- UTILITY (12) ----- (None) > --- WEAPON (4) ------- (None) > --- INVENTORY (5) ---- Warp Cannon Peak State ------------ > --- POWER ------------ Light Fission Core Micro Antimatter Reactor > --- PROPULSION ------- Gravmag Array Combat Antigrav System Combat Antigrav System Combat Antigrav System Combat Antigrav System > --- UTILITY ---------- Advanced Heat Sink Large Storage Unit Advanced Energy Well Improved Signal Interpreter Improved Medium Armor Plating Centrium Light Armor Plating AEGIS Remote Shield Advanced Hacking Suite Quantum Router LC Capacitor > --- WEAPON ----------- Enhanced Nova Cannon Sigix Broadsword > --- INVENTORY -------- Large Matter Pod Improved Particle Charger Improved Medium Armor Plating Centrium Light Armor Plating Core Regenerator Enhanced Nova Cannon Enhanced Nova Cannon Warp Cannon Smartbomb Launcher Guided Remote Datajack [Rating: 198] Favorites ----------- Power Ion Engine Engine Ion Engine Power Core Micro Fission Core Reactor Vortex Chain Reactor Propulsion Combat Antigrav System Treads Medium Treads Wheel Wheel Hover Unit Combat Antigrav System Utility Improved Signal Interpreter Device Advanced Heat Sink Storage Medium Storage Unit Processor Improved Signal Interpreter Hackware Advanced Hacking Suite Protection Medium Armor Plating Artifact LC Capacitor Weapon Light EM Pulse Cannon Energy Gun Cooled Plasma Rifle Energy Cannon Light EM Pulse Cannon Ballistic Gun KE Penetrator Ballistic Cannon Gauss Cannon Launcher Rocket Launcher Impact Weapon Power Maul Slashing Weapon Makeshift Axe Piercing Weapon Lance Build | -11 -10 -10 -10 -7 -7 -5 -5 -5 -5 -4 -4 -4 -4 -4 -3 -3 -3 -3 -2 -2 -1 ------- Run | Yrd Mat Min Sub Rec Scr Fac Upp Upp Zhi Pro Fac Upp Upp War Pro Res Arm Lab Res Qua Acc Slots Evolved 18 | . . . . . . 10 . . . . 2 . . . . 2 . . 2 . 2 Power 1 | . . . . . . 1 . . . . . . . . . . . . . . . Propulsion 5 | . . . . . . 3 . . . . . . . . . 1 . . . . 1 Utility 10 | . . . . . . 5 . . . . 2 . . . . 1 . . 2 . . Weapon 2 | . . . . . . 1 . . . . . . . . . . . . . . 1 Parts Attached 142 | 6 5 . 4 . 2 25 1 5 3 1 7 1 2 12 4 11 2 5 24 3 19 Power 19 | 1 . . . . 1 3 . . 1 . 1 . . 2 . . . . 6 . 4 Engine 4 | 1 . . . . 1 2 . . . . . . . . . . . . . . . Core 3 | . . . . . . 1 . . . . . . . 1 . . . . 1 . . Reactor 12 | . . . . . . . . . 1 . 1 . . 1 . . . . 5 . 4 Propulsion 36 | 2 1 . 2 . . 8 . 1 . 1 1 . 1 2 2 6 . . 3 1 5 Treads 1 | . . . . . . . . . . . . . 1 . . . . . . . . Leg . | . . . . . . . . . . . . . . . . . . . . . . Wheel 12 | 2 1 . 2 . . 3 . . . . . . . . . . . . . . 4 Hover 23 | . . . . . . 5 . 1 . 1 1 . . 2 2 6 . . 3 1 1 Flight . | . . . . . . . . . . . . . . . . . . . . . . Utility 56 | 1 2 . 1 . 1 10 . 2 2 . 4 . 1 4 2 3 1 3 11 1 7 Device 19 | . . . . . . 4 . 1 . . 3 . 1 2 1 . . 1 3 1 2 Storage 7 | 1 1 . 1 . . . . . 1 . . . . 1 . . 1 . . . 1 Processor 6 | . . . . . 1 1 . . . . 1 . . . 1 . . . 2 . . Hackware 6 | . . . . . . 3 . . 1 . . . . . . 1 . 1 . . . Protection 17 | . 1 . . . . 2 . 1 . . . . . 1 . 2 . . 6 . 4 Artifact 1 | . . . . . . . . . . . . . . . . . . 1 . . . Weapon 31 | 2 2 . 1 . . 4 1 2 . . 1 1 . 4 . 2 1 2 4 1 3 Energy Gun 6 | 1 . . . . . 2 . . . . . . . 1 . 1 . 1 . . . Energy Cannon 11 | . 1 . 1 . . 1 . . . . . 1 . 2 . . . 1 3 . 1 Ballistic Gun 2 | 1 . . . . . . . . . . 1 . . . . . . . . . . Ballistic Cannon 1 | . . . . . . . . 1 . . . . . . . . . . . . . Launcher 5 | . . . . . . 1 . . . . . . . 1 . . 1 . . . 2 Special Weapon . | . . . . . . . . . . . . . . . . . . . . . . Impact Weapon 2 | . 1 . . . . . . 1 . . . . . . . . . . . . . Slashing Weapon 2 | . . . . . . . 1 . . . . . . . . . . . . 1 . Piercing Weapon 2 | . . . . . . . . . . . . . . . . 1 . . 1 . . Special Melee Weapon . | . . . . . . . . . . . . . . . . . . . . . . Unidentified Prototypes 21 | . . . . . . 1 . . 3 . . . . 6 . 2 1 5 3 . . Parts Lost 74 | . . . 2 . . 8 1 5 . 3 1 1 7 . 2 . . 3 7 6 28 Power 12 | . . . . . . . . 1 . 1 . . 1 . . . . . 3 1 5 Propulsion 24 | . . . 2 . . 5 . 1 . 1 1 1 2 . . . . 1 1 2 7 Utility 33 | . . . . . . 3 . 2 . 1 . . 4 . 2 . . 2 3 2 14 Weapon 5 | . . . . . . . 1 1 . . . . . . . . . . . 1 2 Highest Loss Streak 14 | . . . 1 . . 4 1 4 . 3 1 1 3 . 1 . . 2 5 5 14 To Critical Strikes 2 | . . . 1 . . . . . . . . . . . . . . . 1 . . Average Backups 8 | 1 3 6 9 10 9 6 8 7 7 8 7 8 8 8 8 8 8 8 13 9 6 Power . | . 1 1 . 1 1 . 1 . . . . . 1 1 1 1 1 1 . . . Propulsion 1 | . 1 2 1 2 2 1 1 1 1 . . . . . . 1 2 1 2 . . Utility 2 | . . 1 3 4 3 1 4 3 3 4 4 5 4 3 2 2 2 2 2 3 1 Weapon 3 | . 1 2 2 3 2 2 2 2 2 3 1 2 2 2 3 3 3 2 5 4 3 Tool/Special . | . . . . . . . . . . . . . . . . . . . . . . Unused Backups 9 | . . . . . 3 . . . . . . . . 1 . 2 . . 1 1 1 Power . | . . . . . . . . . . . . . . . . . . . . . . Propulsion 3 | . . . . . 1 . . . . . . . . . . 2 . . . . . Utility 1 | . . . . . . . . . . . . . . . . . . . . . 1 Weapon 4 | . . . . . 2 . . . . . . . . 1 . . . . 1 . . Tool/Special 1 | . . . . . . . . . . . . . . . . . . . . 1 . Average Slot Usage (%) 83 | . 86 100 89 85 98 87 90 90 85 74 75 83 76 69 80 87 87 86 76 75 58 Engine 5 | . 14 14 14 14 14 5 5 4 3 . . . . . . . . . . . . Reactor 3 | . . . . . . . . . 1 5 7 10 7 5 5 4 4 4 7 3 5 Wheel 10 | . 28 28 28 28 28 13 . . . . . . . . . . . . . . 4 Hover 12 | . . . . . . 6 23 22 23 22 17 16 11 9 24 27 28 28 22 20 10 Device 8 | . . . . . . 16 11 13 17 14 16 21 16 10 15 14 13 12 9 7 5 Storage 9 | . 14 14 14 14 13 5 5 5 5 5 5 5 8 10 10 9 9 7 7 8 9 Processor 5 | . . . . . 13 5 5 5 5 5 5 10 10 10 10 9 9 9 4 4 3 Hackware 4 | . . . . . . 3 11 8 5 5 5 5 5 5 5 5 4 6 8 8 6 Protection 3 | . 1 14 4 . . 5 5 5 5 5 3 . . 1 2 6 9 2 4 9 7 Energy Gun 1 | . 13 . . . . 4 2 . . . 2 . . . . 3 2 1 . 1 . Energy Cannon 9 | . 1 14 27 28 28 4 4 3 . . . 3 5 4 . . . 3 3 . 6 Impact Weapon 2 | . 1 14 . . . 4 . 1 5 5 5 5 5 5 5 1 . . . . . Peak Build Rating 198 | 6 10 10 28 28 18 76 76 74 78 77 92 99 96 105 125 145 140 183 187 198 146 Average Rating 79 | 4 6 10 18 27 17 54 72 70 71 70 81 92 86 83 110 133 132 147 171 160 96 On Entrance 72 | . 6 10 10 28 11 18 71 70 68 77 67 88 94 65 105 108 137 129 183 138 118 Avg Prop Armor Cover (%) 4 | . . . . . . . . . . . . . 5 5 3 . . . 1 . 9 Naked Turns 2 | . . . . . . . . . . . . . . . . . . . . . 2 Heaviest Build 213 | 13 28 28 213 213 213 49 40 47 47 47 68 62 64 84 84 94 85 115 117 93 94 Greatest Support 93 | 26 26 20 20 20 20 52 52 53 53 53 51 50 41 36 60 90 90 93 93 88 79 Greatest Overweight (x) 10 | 4 1 1 10 10 10 3 . . . 1 1 1 2 2 3 1 . 1 3 1 3 Average Overweight (x) 1 | . . 1 5 10 1 . . . . . . . 1 1 1 . . . . . . Largest Inventory Capacity 35 | 8 10 10 35 35 35 10 10 10 10 10 10 10 10 10 10 10 15 15 15 15 15 Average Capacity 14 | 7 9 10 27 35 11 10 10 10 10 10 10 10 10 10 10 10 12 15 15 15 14 Most Carried 25 | 2 7 7 25 25 11 10 10 9 9 9 10 10 9 10 10 10 11 13 15 15 11 Average Carried 11 | 1 4 6 16 24 9 6 8 7 7 8 7 8 8 9 9 9 10 9 14 10 8 Final Capacity 35 | 8 10 10 35 35 10 10 10 10 10 10 10 10 10 10 10 10 15 15 15 15 5 Final Carried 25 | 2 6 7 25 11 9 10 9 6 9 8 10 9 8 10 9 10 11 13 15 10 1 Class Distribution -------------------- 49% | Hacker-Mutant 22% | Mutant 14% | Hauler-Mutant 11% | Hacker-Assassin Dominant Class ---------------- Mutant | -10/Materials Mutant | -10/Mines Hauler-Mutant | -10/Subcaves Hauler-Mutant | -7/Recycling Mutant | -7/Scraptown Mutant | -5/Factory Hacker-Mutant | -5/Upper Caves Hacker-Mutant | -5/Upper Caves Hacker-Mutant | -5/Zhirov Hacker-Mutant | -4/Proximity Caves Hacker-Assassin | -4/Factory Hacker-Assassin | -4/Upper Caves Hacker-Mutant | -4/Upper Caves Hacker-Assassin | -4/Warlord Hacker-Mutant | -3/Proximity Caves Hacker-Mutant | -3/Research Hacker-Mutant | -3/Armory Hacker-Mutant | -3/Lab Hacker-Mutant | -2/Research Hacker-Mutant | -2/Quarantine Hacker-Mutant | -1/Access Resources | -11 -10 -10 -10 -7 -7 -5 -5 -5 -5 -4 -4 -4 -4 -4 -3 -3 -3 -3 -2 -2 -1 ----------- Run | Yrd Mat Min Sub Rec Scr Fac Upp Upp Zhi Pro Fac Upp Upp War Pro Res Arm Lab Res Qua Acc Matter Collected 3462 | 264 116 . 132 . 30 525 265 200 . . 197 77 45 75 135 284 . 28 779 86 224 Remotely 124 | . . . . . . . . . . . . . . . . . . . . . 124 Salvage Created 4298 | 30 55 . 384 . . 634 202 68 . . 135 119 123 75 176 443 . 68 330 214 1242 Parts 179 | 1 6 . 20 . . 38 5 2 . . 6 2 4 2 13 22 . 1 5 12 40 Haulers Intercepted . | . . . . . . . . . . . . . . . . . . . . . . Recyclers Shooed 1 | . . . . . . 1 . . . . . . . . . . . . . . . Parts Field Recycled . | . . . . . . . . . . . . . . . . . . . . . . Retrieved Matter . | . . . . . . . . . . . . . . . . . . . . . . Parts Self-Destructed 32 | . . . 8 . . . 5 3 . . . 3 3 . 10 . . . . . . Prevented 6 | . . . 4 . . . . 2 . . . . . . . . . . . . . Parts Restored . | . . . . . . . . . . . . . . . . . . . . . . Kills | -11 -10 -10 -10 -7 -7 -5 -5 -5 -5 -4 -4 -4 -4 -4 -3 -3 -3 -3 -2 -2 -1 ------- Run | Yrd Mat Min Sub Rec Scr Fac Upp Upp Zhi Pro Fac Upp Upp War Pro Res Arm Lab Res Qua Acc Combat Hostiles Destroyed 80 | . 3 . 7 . . 17 2 2 . . 2 3 2 . 10 8 . 3 5 2 14 Melee 2 | . . . . . . . . . . . . . . . . . . . . 2 . Guns 12 | . 3 . . . . 1 1 . . . 1 1 1 . . 3 . 1 . . . Cannons 29 | . . . 5 . . 1 1 1 . . 1 1 1 . 3 5 . . 4 . 6 AOE 29 | . . . . . . 12 . . . . . . . . 7 . . 2 . . 8 Classes Destroyed 18 | 1 1 . 4 . . 7 1 . . . 1 . . 1 . 1 . . 1 . . Worker 10 | . . . . . . 4 . . . . . . . . . . . . . . 6 Builder 16 | . . . . . . 3 . . . . . . . . . 2 . . . . 11 Tunneler 2 | 1 . . . . . . . . . . . . . . . . . . . . 1 Recycler 6 | . . . . . . . . . . . . . . . . 1 . . . . 5 Operator 1 | . . . . . . 1 . . . . . . . . . . . . . . . Turret 2 | . . . 2 . . . . . . . . . . . . . . . . . . Watcher 2 | . . . . . . . . . . . . . . . . 1 . . . 1 . Swarmer 23 | . 3 . 2 . . 4 2 . . . . 2 . . 5 5 . . . . . Grunt 22 | . . . . . . 7 . . . . . . . . . . . 3 1 2 9 Brawler 2 | . . . . . . 1 . . . . . . . . . . . . 1 . . Duelist 1 | . . . . . . 1 . . . . . . . . . . . . . . . Sentry 4 | . . . 1 . . . . 1 . . . 1 . . 1 . . . . . . Demolisher 1 | . . . . . . . . . . . . . . . . . . . 1 . . Specialist 1 | . . . . . . . . . . . . . . 1 . . . . . . . Hunter 7 | . . . . . . . . . . . 2 . 2 . 2 . . . 1 . . Programmer 15 | . . . . . . 4 . 1 . . . . . . 2 3 . . . . 5 Combat Programmer 1 | . . . . . . . . . . . . . . . . . . . 1 . . Artisan 1 | . . . 1 . . . . . . . . . . . . . . . . . . Subdweller 4 | . . . 4 . . . . . . . . . . . . . . . . . . Decomposer 1 | . . . . . . . 1 . . . . . . . . . . . . . . Packrat 2 | . . . . . . . 2 . . . . . . . . . . . . . . Best Kill Streak 19 | 1 3 . 2 . . 9 2 1 . . 2 3 1 . 6 6 . 3 1 1 19 Combat Bots Only 7 | . 3 . 2 . . 5 2 1 . . 2 3 1 . 6 5 . 3 1 1 7 Max Kills in Single Turn 19 | 1 1 . 1 . . 4 1 1 . . 1 1 1 1 3 1 . 1 1 1 19 Gunslinging . | . . . . . . . . . . . . . . . . . . . . . . Exploded 7 | . . . . . . 3 . . . . . . . . 3 . . 1 . . 7 Melee 1 | . . . . . . . . . . . . . . . . . . . . 1 . Uniques/NPCs Destroyed . | . . . . . . . . . . . . . . . . . . . . . . Combat | -11 -10 -10 -10 -7 -7 -5 -5 -5 -5 -4 -4 -4 -4 -4 -3 -3 -3 -3 -2 -2 -1 -------- Run | Yrd Mat Min Sub Rec Scr Fac Upp Upp Zhi Pro Fac Upp Upp War Pro Res Arm Lab Res Qua Acc Hostile Shots Fired 1268 | . 20 . 84 . . 80 17 33 . 66 32 26 71 . 40 92 . 23 232 164 288 Missed 444 | . 4 . 35 . . 32 4 11 . 35 9 11 24 . 14 29 . 4 89 60 83 Hits 824 | . 16 . 49 . . 48 13 22 . 31 23 15 47 . 26 63 . 19 143 104 205 Melee 8 | . . . . . . 4 . . . . . . . . . . . . 4 . . Projectile 816 | . 16 . 49 . . 44 13 22 . 31 23 15 47 . 26 63 . 19 139 104 205 AOE 3 | . . . . . . . . . . . . . . 1 . . . . 2 . . Critical Strikes 40 | . . . 1 . . 3 . 2 . 2 1 1 2 . 3 3 . . 7 3 12 Actively Blocked 4 | . . . . . . . . . . . . . . . . 2 . . . . 2 Part Disruptions 3 | . . . . . . 1 . . . . . . . . 1 . . . . . 1 Actively Blocked 1 | . . . . . . . . . . . . . . . . . . . . . 1 Damage Taken 13372 | . 90 . 408 . . 1070 213 352 . 471 303 201 651 10 441 880 . 256 2369 1702 3955 Core 3015 | . 28 . 72 . . 223 10 46 . 85 57 15 95 . . 92 . 66 356 123 1747 Absorbed by Shields 1945 | . . . . . . . . . . . . . . 10 138 267 . 80 782 120 548 Redirected to Shielding 500 | . . . . . . 22 . . . . . . . . . 79 . 25 . . 374 Ignored by Resistances 4177 | . 32 . 120 . . 226 59 130 . 134 89 59 184 6 156 316 . 97 763 502 1304 Regen/Repaired (Parts) 471 | . . . . . . 20 . . . . . . . 147 . . . . . 304 . Core Remaining (%) 79 | 100 . . . . 60 . . . . 63 . . . . 85 . . 82 . 85 . Volleys Fired 294 | 5 7 . 29 . . 31 21 19 . . 9 8 10 11 14 27 . 14 45 4 40 Largest 2 | 2 2 . 2 . . 2 2 2 . . 2 2 2 1 1 2 . 1 2 2 2 Hottest 240 | 60 60 . 112 . . 155 104 120 . . 64 131 131 60 50 240 . 50 170 120 240 Shots Fired 428 | 10 14 . 58 . . 48 25 30 . . 17 16 20 11 14 32 . 13 45 5 70 Gun 108 | 10 14 . . . . 17 10 . . . 9 8 10 1 . 20 . 1 6 2 . Cannon 288 | . . . 58 . . 19 15 30 . . 8 8 10 10 10 12 . 1 39 3 65 Launcher 32 | . . . . . . 12 . . . . . . . . 4 . . 11 . . 5 Special . | . . . . . . . . . . . . . . . . . . . . . . Kinetic 62 | 5 7 . . . . . . 18 . . 9 8 10 . . 4 . 1 . . . Thermal 217 | . . . . . . 36 25 12 . . 8 8 10 . . 16 . . 31 5 66 Explosive 21 | . . . . . . 12 . . . . . . . . . . . 5 . . 4 Electromagnetic 76 | 5 7 . 58 . . . . . . . . . . . . . . . 6 . . Entropic 52 | . . . . . . . . . . . . . . 11 14 12 . 7 8 . . Robot Hit Streak 44 | 4 3 . 22 . . 16 18 22 . . 26 9 12 2 4 14 . 6 13 . 44 Robot Miss Streak 4 | 1 2 . 4 . . 4 2 . . . 1 4 1 . 1 2 . 1 1 . 1 Penetration Max . | . . . . . . . . . . . . . . . . . . . . . . Secondary Targets 2 | . 2 . . . . . . . . . . . . . . . . . . . . Max Gunslinging Chain 1 | . 1 . . . . . . . . . . . . . . . . . . . . Shots Hit Robots 290 | 5 8 . 37 . . 30 6 22 . . 12 10 16 1 9 24 . 10 34 6 60 Core Hits 177 | 2 4 . 13 . . 42 4 5 . . 7 3 7 1 10 12 . 8 10 5 44 Critical Kills 4 | . . . . . . . . . . . . 1 1 . . 1 . . 1 . . Critical Parts Destroyed 1 | . . . . . . 1 . . . . . . . . . . . . . . . Critical Strikes 23 | . . . 1 . . 1 . 2 . . 2 1 1 . 4 5 . . 6 . . Meltdown 2 | . . . . . . . . . . . . 1 . . . . . . 1 . . Destroy 2 | . . . . . . . . . . . . . 1 . . 1 . . . . . Blast 4 | . . . . . . . . 2 . . 2 . . . . . . . . . . Corrupt 1 | . . . 1 . . . . . . . . . . . . . . . . . . Smash 1 | . . . . . . 1 . . . . . . . . . . . . . . . Impale 2 | . . . . . . . . . . . . . . . . 2 . . . . . Sunder 11 | . . . . . . . . . . . . . . . 4 2 . . 5 . . Melee Attacks 118 | . . . . . . 53 6 1 . 3 1 2 1 . . 21 6 3 7 14 . Impact 66 | . . . . . . 53 . 1 . 3 1 2 1 . . 5 . . . . . Slashing 20 | . . . . . . . 6 . . . . . . . . . . . . 14 . Piercing 32 | . . . . . . . . . . . . . . . . 16 6 3 7 . . Sneak Attacks 9 | . . . . . . 2 3 1 . . . . . . . 3 . . . . . Combat Hostiles . | . . . . . . . . . . . . . . . . . . . . . . Follow-up Attacks . | . . . . . . . . . . . . . . . . . . . . . . Damage Inflicted 44832 | 56 77 . 708 . . 2869 322 690 . . 273 302 320 78 2060 1377 . 1845 1616 442 31797 Guns 1493 | 56 77 . . . . 327 48 . . . 172 112 153 . . 448 . 23 77 . . Cannons 7644 | . . . 708 . . 366 53 622 . . 101 190 167 78 585 656 . . 1539 . 2579 Explosions 34573 | . . . . . . 2058 . . . . . . . . 1475 . . 1822 . . 29218 Melee 1108 | . . . . . . 118 221 68 . . . . . . . 273 . . . 428 . Ramming 14 | . . . . . . . . . . . . . . . . . . . . 14 . Kinetic 929 | 26 23 . . . . . . 386 . . 101 112 153 . . 105 . 23 . . . Thermal 34558 | . . . . . . 1416 101 236 . . 172 190 167 . . 343 . . 971 . 30962 Explosive 3161 | . . . . . . 1335 . . . . . . . . . . . 991 . . 835 Electromagnetic 869 | 30 54 . 708 . . . . . . . . . . . . . . . 77 . . Impact 274 | . . . . . . 118 . 68 . . . . . . . 88 . . . . . Slashing 649 | . . . . . . . 221 . . . . . . . . . . . . 428 . Piercing 185 | . . . . . . . . . . . . . . . . 185 . . . . . Entropic 4193 | . . . . . . . . . . . . . . 78 2060 656 . 831 568 . . Highest Corruption 13 | . . . . . . 12 12 13 13 13 . . . . 2 5 5 9 6 6 9 Average Corruption 6 | . . . . . . 9 12 12 13 13 . . . . 1 4 5 8 1 6 4 Corruption Purged . | . . . . . . . . . . . . . . . . . . . . . . Corruption Blocked . | . . . . . . . . . . . . . . . . . . . . . . Effects 80 | . . . . . . 17 13 10 2 9 . . . . 4 4 3 3 5 7 3 Message Errors 19 | . . . . . . 6 2 2 1 3 . . . . . 1 . . 3 1 . Matter Fused 16 | . . . . . . . 1 3 . 2 . . . . 3 1 2 1 1 1 1 Heat Flow Errors 14 | . . . . . . 2 4 1 1 1 . . . . . 1 1 1 . 2 . Energy Discharges 7 | . . . . . . 2 1 1 . 1 . . . . . 1 . . . 1 . Parts Rejected 1 | . . . . . . 1 . . . . . . . . . . . . . . . Parts Fused 1 | . . . . . . 1 . . . . . . . . . . . . . . . Data Loss (minor) 9 | . . . . . . 1 3 2 . . . . . . . . . . . 2 1 Data Loss (major) 3 | . . . . . . 1 1 . . . . . . . 1 . . . . . . Alerts 1 | . . . . . . . 1 . . . . . . . . . . . . . . Misdirections 3 | . . . . . . 1 . . . 2 . . . . . . . . . . . Weapon Failures 6 | . . . . . . 2 . 1 . . . . . . . . . 1 1 . 1 Overload Shots 12 | . . . . . . 4 6 . . . . . . . . 2 . . . . . Effects 3 | . . . . . . . 2 . . . . . . . . 1 . . . . . Energy Bleed 2 | . . . . . . . 2 . . . . . . . . . . . . . . Heat Surge 1 | . . . . . . . . . . . . . . . . 1 . . . . . Overflow Damage 4054 | . . . . . . 150 123 3 . . . 17 . . 252 192 . 45 26 . 3246 Projectiles 302 | . . . . . . 7 . 3 . . . 17 . . 88 93 . . 26 . 68 Explosions 3456 | . . . . . . 69 . . . . . . . . 164 . . 45 . . 3178 Melee 296 | . . . . . . 74 123 . . . . . . . . 99 . . . . . Knockbacks 5 | . . . . . . . . 3 . . 2 . . . . . . . . . . Impact 1 | . . . . . . . . 1 . . . . . . . . . . . . . Kinetic 4 | . . . . . . . . 2 . . 2 . . . . . . . . . . Secondary . | . . . . . . . . . . . . . . . . . . . . . . Self-Inflicted Damage 1169 | . . . . . . 30 . . . . . . . . . . . . . 7 1132 Shots 4 | . . . . . . 2 . . . . . . . . . . . . . . 2 Rammed 1 | . . . . . . . . . . . . . . . . . . . . 1 . Targets Rammed 1 | . . . . . . . . . . . . . . . . . . . . 1 . Kicked . | . . . . . . . . . . . . . . . . . . . . . . Crushed . | . . . . . . . . . . . . . . . . . . . . . . Highest Temperature 455 | 40 40 . 21 . . 355 455 207 . 18 . . . . . 370 176 63 100 195 317 Average Temperature 97 | 27 25 . 7 . . 111 146 81 . 9 . . . . . 166 108 41 27 97 100 Received Heat Transfer 1987 | . . . 234 . . 192 27 54 . 75 . 37 30 . 39 74 . 32 65 482 646 Effects 2 | . . . . . . 1 . . . . . . . . . 1 . . . . . Shutdowns 1 | . . . . . . . . . . . . . . . . 1 . . . . . Matter Decay 1 | . . . . . . 1 . . . . . . . . . . . . . . . Siege Activations . | . . . . . . . . . . . . . . . . . . . . . . Martial Activations . | . . . . . . . . . . . . . . . . . . . . . . Shielding Activations . | . . . . . . . . . . . . . . . . . . . . . . Robots Disrupted . | . . . . . . . . . . . . . . . . . . . . . . Combat Hostiles . | . . . . . . . . . . . . . . . . . . . . . . Robots Corrupted 5 | . . . 3 . . 1 . . . . . . . . . 1 . . . . . Combat Hostiles 2 | . . . 2 . . . . . . . . . . . . . . . . . . Parts Fried 6 | . . . 4 . . 1 . . . . . . . . . 1 . . . . . Impact Corruptions 4 | . . . . . . 3 . . . . . . . . . 1 . . . . . Robots Melted 6 | . . . . . . 3 . 1 . . . 1 . . . . . . 1 . . Combat Hostiles 6 | . . . . . . 3 . 1 . . . 1 . . . . . . 1 . . Parts Melted 8 | . . . . . . 3 . . . . . . 1 . . . . . . . 4 Heat Transferred 6509 | . . . . . . 1690 200 400 . . 350 300 250 . . 359 . . 814 . 2146 Parts Sabotaged 4 | . . . . . . . . . . . . . . . . . . . 4 . . Parts Stolen . | . . . . . . . . . . . . . . . . . . . . . . Parts Stripped . | . . . . . . . . . . . . . . . . . . . . . . Power Chain Reactions . | . . . . . . . . . . . . . . . . . . . . . . Alert | -11 -10 -10 -10 -7 -7 -5 -5 -5 -5 -4 -4 -4 -4 -4 -3 -3 -3 -3 -2 -2 -1 ------- Run | Yrd Mat Min Sub Rec Scr Fac Upp Upp Zhi Pro Fac Upp Upp War Pro Res Arm Lab Res Qua Acc Maximum Alert Level 2 | . . . . . . 2 . . . . 1 . . . . . . . 1 . . Low Security (%) 87 | 100 100 100 . 100 . 59 . . . . 80 . . . . 100 100 . 91 100 100 Level 1 10 | . . . . . . 31 . . . . 19 . . . . . . . 8 . . Level 2 1 | . . . . . . 8 . . . . . . . . . . . . . . . Level 3 . | . . . . . . . . . . . . . . . . . . . . . . Level 4 . | . . . . . . . . . . . . . . . . . . . . . . Level 5 . | . . . . . . . . . . . . . . . . . . . . . . High Security . | . . . . . . . . . . . . . . . . . . . . . . Max Security . | . . . . . . . . . . . . . . . . . . . . . . Peak Influence 507 | 5 60 . . 166 . 507 . . . . 219 . . . . 164 79 . 251 92 66 Initial 207 | . . . . 166 . . . . . . 207 . . . . 62 70 . . 9 42 Average 74 | . 14 . . 60 . 151 . . . . 183 . . . . 37 65 . 65 12 21 Influence Increases 4733 | 5 70 . 535 . . 1021 130 40 . 135 218 105 50 44 245 333 19 60 568 192 963 Destroy 0b10 Robot/C 1600 | . 60 . 100 . . 340 40 40 . . 40 60 40 40 200 160 . 60 100 40 280 Destroy 0b10 Robot/NC 185 | 5 . . . . . 40 . . . . . . . . . 20 . . . 5 115 Destroy Leader 224 | . 10 . . . . 60 . . . . 10 . 10 . 30 22 . . 30 12 40 Allied During Kill 4 | . . . . . . . . . . . . . . 4 . . . . . . . Successful Hack 46 | . . . . . . 13 . . . . 3 . . . . 30 . . . . . Disable Machine 207 | . . . . . . 99 . . . . 9 . . . . 9 9 . 27 27 27 Destroy Structure 922 | . . . . . . 334 . . . . 6 . . . . 32 10 . 21 18 501 Advance Influence 150 | . . . . . . . . . . . 150 . . . . . . . . . . Partial Spotted 60 | . . . . . . . . . . . . . . . . . . . 60 . . Lose Combat Pursuer 1335 | . . . 435 . . 135 90 . . 135 . 45 . . 15 60 . . 330 90 . Influence Decreases 4093 | 5 70 . 130 405 . 524 403 223 41 30 188 182 108 43 141 282 126 109 548 130 405 Entered New Map 923 | . . . . 239 . . 223 63 41 . 48 62 17 . 1 43 86 49 . 11 40 Time Decay 2678 | 5 70 . 120 166 . 444 170 110 . 30 130 110 81 10 140 239 40 50 538 84 141 Lost Part 459 | . . . 10 . . 80 10 50 . . 10 10 10 . . . . 10 10 35 224 Lost Ally 33 | . . . . . . . . . . . . . . 33 . . . . . . . Squads Dispatched 18 | . . . . . . 5 . . . 1 1 . . . . 4 1 . 3 1 2 Investigation 4 | . . . . . . 2 . . . . 1 . . . . 1 . . . . . Extermination 4 | . . . . . . 2 . . . . . . . . . 1 . . . . 1 Reinforcement 6 | . . . . . . . . . . . . . . . . 2 1 . 1 1 1 Assault 1 | . . . . . . . . . . 1 . . . . . . . . . . . Garrison 1 | . . . . . . 1 . . . . . . . . . . . . . . . Intercept 2 | . . . . . . . . . . . . . . . . . . . 2 . . Searches Triggered . | . . . . . . . . . . . . . . . . . . . . . . Construction Impeded 3 | . . . . . . . . . . . . . . . . 1 . . 1 . 1 Haulers Reinforced . | . . . . . . . . . . . . . . . . . . . . . . Active Scanning Responses . | . . . . . . . . . . . . . . . . . . . . . . Cargo Convoy Interrupts . | . . . . . . . . . . . . . . . . . . . . . . Stealth | -11 -10 -10 -10 -7 -7 -5 -5 -5 -5 -4 -4 -4 -4 -4 -3 -3 -3 -3 -2 -2 -1 --------- Run | Yrd Mat Min Sub Rec Scr Fac Upp Upp Zhi Pro Fac Upp Upp War Pro Res Arm Lab Res Qua Acc Distress Signals 9 | . . . . . . . . . . . . . . 1 . 3 . . 3 2 . Communications Jammed 1 | . . . . . . 1 . . . . . . . . . . . . . . . Distress Signals 1 | . . . . . . 1 . . . . . . . . . . . . . . . Times Spotted 257 | . 4 . 24 . . 27 8 3 . 18 4 6 5 1 9 27 . 4 75 21 21 Peak Tracking Total 14 | . 4 . 2 . . 9 9 2 . 14 2 3 3 . 5 12 . 4 12 10 11 Tactical Retreats 34 | . . . 6 . . 5 2 . . 3 . 1 . . 1 3 . . 11 2 . Traps | -11 -10 -10 -10 -7 -7 -5 -5 -5 -5 -4 -4 -4 -4 -4 -3 -3 -3 -3 -2 -2 -1 ------- Run | Yrd Mat Min Sub Rec Scr Fac Upp Upp Zhi Pro Fac Upp Upp War Pro Res Arm Lab Res Qua Acc Traps Triggered 4 | . . . 1 . . 1 . . . . . . . . . 2 . . . . . Indirectly . | . . . . . . . . . . . . . . . . . . . . . . Trap Hack Attempts . | . . . . . . . . . . . . . . . . . . . . . . Triggered . | . . . . . . . . . . . . . . . . . . . . . . Disarmed . | . . . . . . . . . . . . . . . . . . . . . . Reprogrammed . | . . . . . . . . . . . . . . . . . . . . . . Reused . | . . . . . . . . . . . . . . . . . . . . . . Traps Extracted . | . . . . . . . . . . . . . . . . . . . . . . Installed . | . . . . . . . . . . . . . . . . . . . . . . Triggered . | . . . . . . . . . . . . . . . . . . . . . . Objects Rigged 7 | . . . . . . 7 . . . . . . . . . . . . . . . Exploded 2 | . . . . . . 2 . . . . . . . . . . . . . . . Machines | -11 -10 -10 -10 -7 -7 -5 -5 -5 -5 -4 -4 -4 -4 -4 -3 -3 -3 -3 -2 -2 -1 ---------- Run | Yrd Mat Min Sub Rec Scr Fac Upp Upp Zhi Pro Fac Upp Upp War Pro Res Arm Lab Res Qua Acc Machines Disabled 33 | . . . 2 . . 11 . . . . 1 . . 1 . 1 1 7 3 3 3 Max in Single Turn 4 | . . . 1 . . 4 . . . . 1 . . 1 . 1 1 3 1 1 3 Garrison Access 2 | . . . . . . . . . . . . . . . . . . . 2 . . Machines Repaired . | . . . . . . . . . . . . . . . . . . . . . . Machines Dismantled . | . . . . . . . . . . . . . . . . . . . . . . Machines Sabotaged . | . . . . . . . . . . . . . . . . . . . . . . Overloaded Fab Kills . | . . . . . . . . . . . . . . . . . . . . . . Hacking | -11 -10 -10 -10 -7 -7 -5 -5 -5 -5 -4 -4 -4 -4 -4 -3 -3 -3 -3 -2 -2 -1 --------- Run | Yrd Mat Min Sub Rec Scr Fac Upp Upp Zhi Pro Fac Upp Upp War Pro Res Arm Lab Res Qua Acc Machines Accessed 30 | . 2 . 2 3 . 5 . . 3 . 2 . . 3 . 5 . 1 . 2 2 Terminals 11 | . 2 . . 2 . 2 . . . . 1 . . . . 3 . . . 1 . Fabricators 2 | . . . . . . 1 . . . . 1 . . . . . . . . . . Repair Stations 2 | . . . . . . 1 . . . . . . . . . . . . . . 1 Recycling Units 1 | . . . . . . . . . . . . . . . . . . . . . 1 Scanalyzers 3 | . . . . . . 1 . . . . . . . . . 1 . . . 1 . Garrison Access 1 | . . . . . . . . . . . . . . . . 1 . . . . . Total Hacks 75 | . 6 . 3 4 . 18 . . 13 . 5 . . 4 . 12 . 1 . 6 3 Successful 49 | . 2 . 3 1 . 8 . . 13 . 5 . . 4 . 5 . 1 . 6 1 Failed 26 | . 4 . . 3 . 10 . . . . . . . . . 7 . . . . 2 Catastrophic 6 | . 1 . . 1 . 1 . . . . . . . . . 3 . . . . . Database Lockouts . | . . . . . . . . . . . . . . . . . . . . . . Manual 13 | . 3 . . 2 . 3 . . . . . . . . . 4 . 1 . . . Terminals 25 | . 6 . . 3 . 5 . . . . 3 . . . . 7 . . . 1 . Fabricators 7 | . . . . . . 5 . . . . 2 . . . . . . . . . . Repair Stations 5 | . . . . . . 3 . . . . . . . . . . . . . . 2 Recycling Units 1 | . . . . . . . . . . . . . . . . . . . . . 1 Scanalyzers 13 | . . . . . . 5 . . . . . . . . . 3 . . . 5 . Garrison Access 2 | . . . . . . . . . . . . . . . . 2 . . . . . Terminal Hacks 32 | . 2 . 3 1 . 1 . . 13 . 3 . . 4 . 3 . 1 . 1 . Record 8 | . . . 1 . . . . . 5 . . . . 2 . . . . . . . Robot Analysis 5 | . 1 . . . . . . . 4 . . . . . . . . . . . . Prototype ID Bank 4 | . . . . . . . . . 4 . . . . . . . . . . . . Open Door 4 | . . . 1 . . . . . . . . . . 2 . . . . . 1 . Branch Access Points 1 | . . . . . . . . . . . 1 . . . . . . . . . . Terminal Index 1 | . . . . . . . . . . . 1 . . . . . . . . . . Alert Level 2 | . . . . . . 1 . . . . . . . . . 1 . . . . . Locate Traps 1 | . . . . . . . . . . . 1 . . . . . . . . . . Recall Reinforcements 1 | . . . . . . . . . . . . . . . . 1 . . . . . Zone Layout 2 | . 1 . . . . . . . . . . . . . . 1 . . . . . Release Object 3 | . . . 1 1 . . . . . . . . . . . . . 1 . . . Fabricator Hacks 4 | . . . . . . 2 . . . . 2 . . . . . . . . . . Load Schematic 2 | . . . . . . 1 . . . . 1 . . . . . . . . . . Build 2 | . . . . . . 1 . . . . 1 . . . . . . . . . . Repair Station Hacks 2 | . . . . . . 2 . . . . . . . . . . . . . . . Scan Component 1 | . . . . . . 1 . . . . . . . . . . . . . . . Repair 1 | . . . . . . 1 . . . . . . . . . . . . . . . Recycling Unit Hacks 1 | . . . . . . . . . . . . . . . . . . . . . 1 Report Inventory 1 | . . . . . . . . . . . . . . . . . . . . . 1 Scanalyzer 10 | . . . . . . 3 . . . . . . . . . 2 . . . 5 . Insert Component 2 | . . . . . . . . . . . . . . . . . . . . 2 . Analyze 2 | . . . . . . . . . . . . . . . . . . . . 2 . Retrieve Study 6 | . . . . . . 3 . . . . . . . . . 2 . . . 1 . Garrison Access Hacks . | . . . . . . . . . . . . . . . . . . . . . . Unauthorized Hacks . | . . . . . . . . . . . . . . . . . . . . . . Terminals . | . . . . . . . . . . . . . . . . . . . . . . Fabricators . | . . . . . . . . . . . . . . . . . . . . . . Repair Stations . | . . . . . . . . . . . . . . . . . . . . . . Recycling Units . | . . . . . . . . . . . . . . . . . . . . . . Scanalyzers . | . . . . . . . . . . . . . . . . . . . . . . Garrison Access . | . . . . . . . . . . . . . . . . . . . . . . Data Cores Recovered 1 | . . . . . . 1 . . . . . . . . . . . . . . . Used . | . . . . . . . . . . . . . . . . . . . . . . Hacking Detections 18 | . 2 . . 2 . 5 . . . . 2 . . . . 5 . . . . 2 Full Trace Events 5 | . 1 . . . . 2 . . . . 1 . . . . 1 . . . . . Feedback Events 1 | . . . . . . 1 . . . . . . . . . . . . . . . Corruption 1 | . . . . . . 1 . . . . . . . . . . . . . . . Feedback Blocked . | . . . . . . . . . . . . . . . . . . . . . . Robot Schematics Acquired . | . . . . . . . . . . . . . . . . . . . . . . Robots Built . | . . . . . . . . . . . . . . . . . . . . . . Authchips . | . . . . . . . . . . . . . . . . . . . . . . Time . | . . . . . . . . . . . . . . . . . . . . . . Total Robot Build Rating . | . . . . . . . . . . . . . . . . . . . . . . Part Schematics Acquired 17 | . . . . . 8 9 . . . . . . . . . . . . . . . Parts Built 2 | . . . . . . 1 . . . . 1 . . . . . . . . . . Authchips . | . . . . . . . . . . . . . . . . . . . . . . Time 271 | . . . . . . 187 . . . . 84 . . . . . . . . . . Total Part Build Rating 11 | . . . . . . 7 . . . . 4 . . . . . . . . . . Part Studies Acquired 6 | . . . . . . 3 . . . . . . . . . 2 . . . 1 . Parts Repaired 1 | . . . . . . 1 . . . . . . . . . . . . . . . Time 25 | . . . . . . 25 . . . . . . . . . . . . . . . Parts Recycled . | . . . . . . . . . . . . . . . . . . . . . . Recycled Matter . | . . . . . . . . . . . . . . . . . . . . . . Retrieved Matter . | . . . . . . . . . . . . . . . . . . . . . . Retrieved Components . | . . . . . . . . . . . . . . . . . . . . . . Parts Scanalyzed 2 | . . . . . . . . . . . . . . . . . . . . 2 . Part Schematics Acquired . | . . . . . . . . . . . . . . . . . . . . . . Parts Damaged . | . . . . . . . . . . . . . . . . . . . . . . Bothacking | -11 -10 -10 -10 -7 -7 -5 -5 -5 -5 -4 -4 -4 -4 -4 -3 -3 -3 -3 -2 -2 -1 ------------ Run | Yrd Mat Min Sub Rec Scr Fac Upp Upp Zhi Pro Fac Upp Upp War Pro Res Arm Lab Res Qua Acc Used RIF Installer . | . . . . . . . . . . . . . . . . . . . . . . Robots Hacked . | . . . . . . . . . . . . . . . . . . . . . . Non-combat . | . . . . . . . . . . . . . . . . . . . . . . Combat . | . . . . . . . . . . . . . . . . . . . . . . Robot Hacks Applied . | . . . . . . . . . . . . . . . . . . . . . . Relay Couplers Released 3 | . . . . . . . . . . . . . . . . . . . 3 . . Machine Destruction 3 | . . . . . . . . . . . . . . . . . . . 3 . . Fabnet Peak Effective % . | . . . . . . . . . . . . . . . . . . . . . . Robots Rewired 4 | . . . . . . . . . . . . . . 4 . . . . . . . Allies Hacked . | . . . . . . . . . . . . . . . . . . . . . . Hacks Repelled . | . . . . . . . . . . . . . . . . . . . . . . Allies | -11 -10 -10 -10 -7 -7 -5 -5 -5 -5 -4 -4 -4 -4 -4 -3 -3 -3 -3 -2 -2 -1 -------- Run | Yrd Mat Min Sub Rec Scr Fac Upp Upp Zhi Pro Fac Upp Upp War Pro Res Arm Lab Res Qua Acc Total Allies 4 | . . . . . . . . . . . . . . 4 . . . . . . . Largest Group 4 | . . . . . . . . . . . . . . 4 1 . . . . . . Highest-Rated Group 218 | . . . . . . . . . . . . . . 218 64 . . . . . . Highest-Rated Ally 64 | . . . . . . . . . . . . . . 64 64 . . . . . . Total Orders . | . . . . . . . . . . . . . . . . . . . . . . Ally Attacks 11 | . . . . . . . . . . . . . . 11 . . . . . . . Total Damage 445 | . . . . . . . . . . . . . . 445 . . . . . . . Kills 3 | . . . . . . . . . . . . . . 3 . . . . . . . Allies Corrupted . | . . . . . . . . . . . . . . . . . . . . . . Allies Melted 1 | . . . . . . . . . . . . . . . . . . . 1 . . Intel | -11 -10 -10 -10 -7 -7 -5 -5 -5 -5 -4 -4 -4 -4 -4 -3 -3 -3 -3 -2 -2 -1 ------- Run | Yrd Mat Min Sub Rec Scr Fac Upp Upp Zhi Pro Fac Upp Upp War Pro Res Arm Lab Res Qua Acc Active Infowar (turns) 5799 | . . . . . . 1247 359 226 76 171 261 228 468 818 365 649 88 209 634 . . Sensors 5228 | . . . . . . 1236 359 226 76 171 261 228 167 559 365 649 88 209 634 . . Structural 1812 | . . . . . . . . . . . 147 228 468 818 151 . . . . . . Seismic 2 | . . . . . . . . . . . 2 . . . . . . . . . . Jamming 938 | . . . . . . 938 . . . . . . . . . . . . . . . Robot Analysis Total 5 | . 1 . . . . . . . 4 . . . . . . . . . . . . Derelict Logs Recovered 7 | . . . 2 . 1 . . 1 . 1 . 1 1 . . . . . . . . Drone Launches . | . . . . . . . . . . . . . . . . . . . . . . Drone Recoveries . | . . . . . . . . . . . . . . . . . . . . . . Exploration | -11 -10 -10 -10 -7 -7 -5 -5 -5 -5 -4 -4 -4 -4 -4 -3 -3 -3 -3 -2 -2 -1 ------------- Run | Yrd Mat Min Sub Rec Scr Fac Upp Upp Zhi Pro Fac Upp Upp War Pro Res Arm Lab Res Qua Acc Turns Passed 10726 | 83 271 315 1465 483 724 1263 359 226 79 171 261 228 468 818 365 649 88 266 1529 233 382 Spaces Moved 7920 | 51 257 76 774 210 637 875 390 268 138 336 217 237 351 390 327 471 121 201 1154 218 221 Core 49 | 14 . . . . . . . . . . . . . . . . . . . . 35 Treads 168 | . . . . . . . . . . . . . 7 161 . . . . . . . Legs . | . . . . . . . . . . . . . . . . . . . . . . Wheels 2482 | 37 257 76 774 210 637 428 . . . . . . . . . . . . . . 63 Hover 5221 | . . . . . . 447 390 268 138 336 217 237 344 229 327 471 121 201 1154 218 123 Flight . | . . . . . . . . . . . . . . . . . . . . . . Fastest Speed 36 | 50 80 95 95 230 80 48 48 48 48 43 38 38 108 98 96 36 53 53 58 63 50 Average Speed 97 | 113 82 95 162 230 97 70 48 48 48 48 74 81 113 190 97 56 53 93 100 70 94 Slowest Speed 250 | 250 95 95 230 230 230 245 48 52 48 108 108 108 240 240 236 116 53 125 246 129 147 Overloaded Moves . | . . . . . . . . . . . . . . . . . . . . . . Propulsion Burnouts . | . . . . . . . . . . . . . . . . . . . . . . Robots Hopped . | . . . . . . . . . . . . . . . . . . . . . . Potential Cave-ins 22 | . . . . . . 4 . . . . . . . 6 . . . . 12 . . Cave-ins Triggered 2 | . . . . . . 1 . . . . . . . . . . . . 1 . . Teleports 2 | . . . . . . . . . . . . . . . . . 1 . 1 . . Exploration Rate (%) 40 | 3 42 19 41 41 54 23 57 50 60 54 8 52 67 65 56 19 8 99 39 23 10 Regions Visited 21 Branch Regions 15 Pre-discovered Areas 4 | . . . 1 . . . . . 3 . . . . . . . . . . . . Known Exits Taken 15 | . . . . . . 1 1 1 1 1 1 1 1 1 1 1 1 1 1 1 . Unknown Exits Taken 6 | 1 1 1 1 1 1 . . . . . . . . . . . . . . . . Scrap Searched 9 | . . . . . 2 . 2 2 . . . 2 . . 1 . . . . . . Spaces Dug 91 | . . . . . . 39 7 1 . 3 1 2 1 3 . 17 5 . 6 6 . Terrain Destroyed 988 | . . . . . . 201 15 8 . 3 3 7 6 8 212 20 5 149 9 6 336 Melee 74 | . . . . . . 38 3 . . 3 1 2 1 . . 13 5 . 3 5 . Projectile 60 | . . . . . . 1 12 8 . . 2 5 5 8 2 7 . . 6 1 3 AOE 854 | . . . . . . 162 . . . . . . . . 210 . . 149 . . 333 Terrain Rammed . | . . . . . . . . . . . . . . . . . . . . . . Walls Destroyed . | . . . . . . . . . . . . . . . . . . . . . . Machines Disabled . | . . . . . . . . . . . . . . . . . . . . . . Actions | -11 -10 -10 -10 -7 -7 -5 -5 -5 -5 -4 -4 -4 -4 -4 -3 -3 -3 -3 -2 -2 -1 --------- Run | Yrd Mat Min Sub Rec Scr Fac Upp Upp Zhi Pro Fac Upp Upp War Pro Res Arm Lab Res Qua Acc Total 10273 | 63 304 318 925 211 742 1367 531 331 149 339 295 251 400 454 360 789 135 258 1465 264 322 Wait 1527 | . 27 242 108 . 91 344 108 35 . . 50 2 35 15 5 232 1 21 178 8 25 Move 7897 | 50 256 75 773 209 636 873 389 267 137 335 216 236 350 389 326 470 120 200 1152 217 221 Hop . | . . . . . . . . . . . . . . . . . . . . . . Pick Up 62 | 2 4 1 9 1 7 9 . 2 1 . 3 1 1 . 2 5 1 3 6 3 1 Fast Attach 114 | 6 4 . 1 . 2 20 1 1 5 . 7 . 1 10 2 8 1 7 21 2 15 Attach 72 | . . . 2 . . 11 3 5 . 1 2 2 2 2 4 3 1 4 13 8 9 Detach 44 | . 1 . 1 . . 3 2 . 2 . 2 . . 7 4 2 . 4 14 1 1 Swap 32 | . 1 . 1 . 1 7 . . 1 . 1 . . 1 1 5 2 1 8 1 1 Drop 84 | . 4 . 1 1 5 8 1 1 3 . 4 . . 7 2 10 3 1 19 5 9 Fire 294 | 5 7 . 29 . . 31 21 19 . . 9 8 10 11 14 27 . 14 45 4 40 Melee 118 | . . . . . . 53 6 1 . 3 1 2 1 . . 21 6 3 7 14 . Ram 1 | . . . . . . . . . . . . . . . . . . . . 1 . Kick . | . . . . . . . . . . . . . . . . . . . . . . Crush . | . . . . . . . . . . . . . . . . . . . . . . Escape Stasis 8 | . . . . . . 1 . . . . . . . . . 6 . . 1 . . Rewire 13 | . . . . . . . . . . . . . . 12 . . . . 1 . . Trap 7 | . . . . . . 7 . . . . . . . . . . . . . . . Miscellaneous . | . . . . . . . . . . . . . . . . . . . . . . Route ------- -11/Scrapyard -10/Materials (discovered 2 exits: [*Mat] / [*Min]) -10/Mines -10/Subcaves -7/Recycling -7/Scraptown -5/Factory -5/Upper Caves -5/Upper Caves (discovered 2 exits: Fac / *Zhi) -5/Zhirov -4/Proximity Caves -4/Factory (discovered 4 exits: *Upp x2 / Ext x2) -4/Upper Caves -4/Upper Caves (discovered 2 exits: *Res / *War) -4/Warlord -3/Proximity Caves -3/Research -3/Armory -3/Lab -2/Research -2/Quarantine -1/Access History --------- Turn | Location | Event 28 | -11/Scrapyard | Discovered new exit (range 15) 84 | -11/Scrapyard | Entered Materials 180 | -10/Materials | Discovered new exit (range 16) 301 | -10/Materials | Build established: Mutant 325 | -10/Materials | Discovered new exit (range 8) 355 | -10/Materials | Entered Mines 654 | -10/Mines | Discovered new exit (range 4) 670 | -10/Mines | Entered Subcaves 672 | -10/Subcaves | Shifting Twisted Machinery released Sub. Power Source 677 | -10/Subcaves | Shifting Twisted Machinery released Sub. Laser 884 | -10/Subcaves | Learned Materials security intel 961 | -10/Subcaves | Ambushed by angry Subdweller bent on revenge 1438 | -10/Subcaves | Build established: Hauler-Mutant 1444 | -10/Subcaves | Found SUBCON Basin 2069 | -10/Subcaves | Discovered new exit (range 11) 2135 | -10/Subcaves | Entered Recycling 2538 | -7/Recycling | Scanned before Scraplab entrance 2572 | -7/Recycling | Entered Scraplab 2613 | -7/Recycling | Discovered new exit (range 3) 2618 | -7/Recycling | Entered Scraptown 2832 | -7/Scraptown | Visited Awakened 2861 | -7/Scraptown | Visited SPCMW 2893 | -7/Scraptown | Visited Shadow of the Wyrm 2942 | -7/Scraptown | Build established: Mutant 3014 | -7/Scraptown | Visited CPS Storage 3038 | -7/Scraptown | Tech Extrapolator generated special schematic: Machine Rigger 3046 | -7/Scraptown | Visited Assassins FH 3200 | -7/Scraptown | Heard Great Nut preacher, LISTEN AND RECITE! 3236 | -7/Scraptown | Scanned Subdweller tech in exchange for log data 3239 | -7/Scraptown | Learned Factory terminal intel 3253 | -7/Scraptown | Discovered new exit (range 13) 3342 | -7/Scraptown | Entered Factory 3342 | -5/Factory | Evolved 10 slots: Power x1, Propulsion x3, Utility x5, Weapon x1 3343 | -5/Factory | Loaded intel: 26 terminal locations 3614 | -5/Factory | Tech Extrapolator generated special schematic: Deep Structural Scanner 3882 | -5/Factory | Lost 3 parts (1n2u) 4208 | -5/Factory | Crushed by falling debris 4209 | -5/Factory | System corruption reached 10% 4237 | -5/Factory | Fabricated Machine Rigger? 4269 | -5/Factory | Lost 4 parts (3n1u) 4500 | -5/Factory | Build established: Hacker-Mutant 4561 | -5/Factory | Repaired Imp. Cryofiber Web 4579 | -5/Factory | Garrison activated, responded to threat 4601 | -5/Factory | Discovered new exit (range 7) 4604 | -5/Factory | Identified exit to Upper Caves 4605 | -5/Factory | Entered Upper Caves 4646 | -5/Upper Caves | Attracted the attention of an 0b10 outpost 4963 | -5/Upper Caves | Discovered new exit (range 4) 4964 | -5/Upper Caves | Identified exit to Upper Caves 4964 | -5/Upper Caves | Entered another Upper Caves area 5106 | -5/Upper Caves | Attracted the attention of an 0b10 checkpoint 5145 | -5/Upper Caves | Lost 4 parts (1p1n1u1w) 5161 | -5/Upper Caves | Identified exit to Factory 5183 | -5/Upper Caves | Discovered new exit (range 14) 5190 | -5/Upper Caves | Identified exit to Zhirov 5190 | -5/Upper Caves | Entered Zhirov 5190 | -5/Zhirov | Discovered new exit (range 3) 5208 | -5/Zhirov | Learned location of Quarantine (-2) 5208 | -5/Zhirov | Learned location of Testing (-3) 5208 | -5/Zhirov | Learned location of Command (-1) 5221 | -5/Zhirov | Found Alien Artifact 5221 | -5/Zhirov | Identified Integrated Dissipator 5221 | -5/Zhirov | Installed Integrated Dissipator, increased core heat dissipation (+20) 5230 | -5/Zhirov | Found Alien Artifact 5268 | -5/Zhirov | Identified exit to Proximity Caves 5269 | -5/Zhirov | Entered Proximity Caves 5350 | -4/Proximity Caves | Attracted the attention of an 0b10 checkpoint 5377 | -4/Proximity Caves | Learned 4 Research zone layouts 5390 | -4/Proximity Caves | Lost 3 parts (1p1n1u) 5397 | -4/Proximity Caves | Attracted the attention of an 0b10 outpost 5401 | -4/Proximity Caves | Spotter reported a threat 5437 | -4/Proximity Caves | Discovered exit to Factory (range 7) 5440 | -4/Proximity Caves | Entered Factory 5440 | -4/Factory | Evolved 2 slots: Utility x2 5534 | -4/Factory | Fabricated Deep Structural Scanner? 5594 | -4/Factory | Identified exit to Upper Caves 5594 | -4/Factory | Identified exit to Extension 5701 | -4/Factory | Entered Upper Caves 5714 | -4/Upper Caves | Spotted B-86 Titan 5755 | -4/Upper Caves | Attracted the attention of an 0b10 checkpoint 5892 | -4/Upper Caves | Discovered new exit (range 15) 5916 | -4/Upper Caves | Learned location of 1 exit from Research 5921 | -4/Upper Caves | Identified exit to Upper Caves 5929 | -4/Upper Caves | Entered another Upper Caves area 5930 | -4/Upper Caves | Encountered a Warlord checkpoint 5938 | -4/Upper Caves | Discovered new exit (range 14) 5973 | -4/Upper Caves | Learned Research emergency access door positions 6050 | -4/Upper Caves | Build established: Hacker-Assassin 6133 | -4/Upper Caves | Lost 3 parts (1n2u) 6365 | -4/Upper Caves | Discovered new exit (range 18) 6371 | -4/Upper Caves | Attracted the attention of an 0b10 checkpoint 6394 | -4/Upper Caves | Identified exit to Warlord 6397 | -4/Upper Caves | Entered Warlord 6399 | -4/Warlord | Build established: Hacker-Mutant 6424 | -4/Warlord | Lost 3 parts (1n2u) 6631 | -4/Warlord | Visited the Vortex Lab 6638 | -4/Warlord | Warlord's base attacked by MAIN.C 6663 | -4/Warlord | Found Prototype Launcher 6663 | -4/Warlord | Identified Vortex Catalyst Activator 6672 | -4/Warlord | Found Prototype Energy Cannon 6672 | -4/Warlord | Identified Vortex Cannon 6676 | -4/Warlord | Found Vortex Cannon 6682 | -4/Warlord | Found Prototype Energy Gun 6682 | -4/Warlord | Identified Vortex Shotgun 6826 | -4/Warlord | Found Prototype Reactor 6826 | -4/Warlord | Identified Vortex Chain Reactor 6914 | -4/Warlord | Met Warlord 6961 | -4/Warlord | Build established: Hacker-Assassin 6988 | -4/Warlord | Warlord forces counterattacked 7156 | -4/Warlord | Opened side exit 7191 | -4/Warlord | Discovered new exit (range 14) 7210 | -4/Warlord | Identified exit to Proximity Caves 7215 | -4/Warlord | Entered Proximity Caves 7215 | -3/Proximity Caves | Accompanied by 1 ally 7220 | -3/Proximity Caves | P-80 Master assimilated allied Archangel 7a 7237 | -3/Proximity Caves | Lost 3 allies 7350 | -3/Proximity Caves | Spotted B-86 Titan 7404 | -3/Proximity Caves | Attracted the attention of an 0b10 checkpoint 7565 | -3/Proximity Caves | Discovered new exit (range 15) 7579 | -3/Proximity Caves | Identified exit to Research 7580 | -3/Proximity Caves | Entered Research 7580 | -3/Research | Evolved 2 slots: Propulsion x1, Utility x1 7581 | -3/Research | Identified exit to Armory 7668 | -3/Research | Build established: Hacker-Mutant 7742 | -3/Research | Spotted B-86 Titan 7787 | -3/Research | Found Powered Armor 8229 | -3/Research | Entered Armory 8258 | -3/Armory | Identified Transdimensional Reconstructor 8258 | -3/Armory | Warped through subspace to slip node 8258 | -3/Armory | Discovered new exit (range 1) 8258 | -3/Armory | Identified exit to Lab 8317 | -3/Armory | Entered Lab 8317 | -3/Lab | Discovered new exit (range 9) 8321 | -3/Lab | Identified exit to Research 8324 | -3/Lab | Unable to decrypt terminal 8324 | -3/Lab | Opened the door to a hidden lab 8325 | -3/Lab | Gained access to the hidden lab's interior 8325 | -3/Lab | Detected by scanners 8331 | -3/Lab | Confronted by A5 8337 | -3/Lab | Disabled Active System Cloaker 8343 | -3/Lab | MAIN.C forces arrive to investigate 8396 | -3/Lab | Found Alien Artifact 8396 | -3/Lab | Identified Core Reset Matrix 8396 | -3/Lab | Used Core Reset Matrix 8400 | -3/Lab | Sensed 3 artifacts in vicinity 8413 | -3/Lab | Found Integrated Reactor 8413 | -3/Lab | Installed Integrated Reactor, increased core energy generation (+10) 8418 | -3/Lab | Found Transdimensional Reconstructor 8424 | -3/Lab | Found Core Regenerator 8436 | -3/Lab | Found Prototype Device 8436 | -3/Lab | Identified AEGIS Remote Shield 8439 | -3/Lab | Found Prototype Hackware 8439 | -3/Lab | Identified Quantum Router 8443 | -3/Lab | Found Prototype Energy Cannon 8443 | -3/Lab | Identified Warp Cannon 8447 | -3/Lab | Found Prototype Energy Gun 8447 | -3/Lab | Identified Tachyon Dispersion Ray 8489 | -3/Lab | Found Prototype Special Weapon 8526 | -3/Lab | Unable to decrypt terminal 8527 | -3/Lab | Found LC Capacitor 8581 | -3/Lab | Discovered exit to Research (range 3) 8583 | -3/Lab | Entered Research 8583 | -2/Research | Warlord forces began assault on 0b10 8583 | -2/Research | Evolved 2 slots: Utility x2 8693 | -2/Research | Research machine network offline 8833 | -2/Research | Spotted Striker 8835 | -2/Research | Spotted Striker 8848 | -2/Research | Spotted B-90 Cyclops 8852 | -2/Research | Warped through subspace 8987 | -2/Research | Spotted Striker 8988 | -2/Research | Spotted Executioner 9044 | -2/Research | Borebot progress halted 9140 | -2/Research | Met DD-05H 9141 | -2/Research | Met up with Warlord 9315 | -2/Research | Spotted Tracker 9527 | -2/Research | Spotted Striker 9617 | -2/Research | Lost 6 allies 9705 | -2/Research | Discovered new exit (range 11) 9718 | -2/Research | Identified exit to Quarantine 9824 | -2/Research | Spotted Striker 9842 | -2/Research | Spotted Tracker 9843 | -2/Research | Spotted Striker 9892 | -2/Research | Spotted Combat Programmer 9902 | -2/Research | Borebot progress halted 9902 | -2/Research | Destroyed Combat Programmer 9907 | -2/Research | Lost 7 allies 9936 | -2/Research | Spotted Striker 9959 | -2/Research | Warlord invited to help at Command 9959 | -2/Research | Given Cave Seal Controls access code 9962 | -2/Research | Spotted Striker 10031 | -2/Research | Spotted Striker 10053 | -2/Research | Found Prototype Processor 10053 | -2/Research | Identified Exp. Core Analyzer 10072 | -2/Research | Spotted Executioner 10077 | -2/Research | Spotted Executioner 10079 | -2/Research | Spotted Executioner 10092 | -2/Research | Crushed by falling debris 10104 | -2/Research | Lost 6 allies 10112 | -2/Research | Entered Quarantine 10113 | -2/Quarantine | Detected hypermatrix surge 10113 | -2/Quarantine | Sensed 14 artifacts in vicinity 10123 | -2/Quarantine | Lost 5 parts (2p1n2u) 10162 | -2/Quarantine | Found Sigix Broadsword 10206 | -2/Quarantine | Found Subatomic Replicator 10236 | -2/Quarantine | Used Core Regenerator, restored core integrity (+362) 10318 | -2/Quarantine | Discovered new exit (range 16) 10321 | -2/Quarantine | Spotted Alpha 7 10330 | -2/Quarantine | Found Sigix Terminator 10344 | -2/Quarantine | Identified exit to Access 10345 | -2/Quarantine | Entered Access 10345 | -1/Access | Evolved 2 slots: Propulsion x1, Weapon x1 10373 | -1/Access | Lost 5 parts (1p2n1u1w) 10400 | -1/Access | Lost 3 allies 10613 | -1/Access | Lost 14 parts (3p3n8u) 10717 | -1/Access | Core integrity fell below 50% 10724 | -1/Access | Used Subatomic Replicator to create Supercharged Sigix Terminator 10727 | -1/Access | Fired Supercharged Sigix Terminator 10727 | -1/Access | Destroyed self with Supercharged Sigix Terminator Last Messages --------------- Terminator. 10725_ Acquired Supercharged Sigix Terminator. 10727_ P-80 Master resets P-80 Master, system corruption cleaned. 10727_ Supercharged Sigix Terminator expended. 10727_ G-73 Enforcer destroyed. 10727_ Destroyed Unknown Energy Gun. 10727_ Destroyed Unknown Leg. 10727_ G-73 Enforcer destroyed. 10727_ Destroyed Unknown Special Weapon. 10727_ U-05 Engineer destroyed. 10727_ Destroyed Imp. Antigrav System. 10727_ Destroyed Unknown Energy Gun. 10727_ Destroyed Imp. Antigrav System. 10727_ P-80 Master destroyed. 10727_ Destroyed Mic. Antimatter Reactor. 10727_ Destroyed Imp. Antigrav System. 10727_ Destroyed Unknown Energy Gun. 10727_ P-80 Master destroyed. 10727_ K-01 Serf destroyed. Map ----- +----------------------------------------------------+ | " ?# ###/#! # # ######?????????????? | | ?# ]!!% #?????????????? | | ??# ! ! = #?????????????? | | " ??# %! % #######???????? | | """ ???# *% ! ??????? | | """ ???# ! %[ ####??????????? | | ??" ????# | ##?????????????? | | ?? ????# ##??????????????? | | ?? ?????###### # ## = ##########????????? | | ? ????????? ! # #????? | | ??#????????? ; # #????? | | ???????????? # " #????? | | ???????????? ; """" ?????? | | ??????????? " ; ; """""????????? | | ??????????# ; ; """"????????? | | ??????????? ; ; """" #????? | | ????????????? ; ; " #????? | | ????????????? ; ; #????? | | ?????????????? ; ; #????? | | ??????????????"" ; ; #????? | | ??????????????"" ; ; #????? | | ??????????######;;;;;;;; ;;;;;;;;;#####????? | | ??????????# ; ; ?????????? | | ??????????# ; ; ????????? | | ??????????# ; ; ????????? | | ??????????# + @ ;??????????? | | ??????????# # #??????????? | | ??????????# # #??????????? | | ??????????# ?# #??????????? | | ??????????# ?######## ????????? | | ??????????# ?????????? gg g ???????? | | ??????????# ?????????? ???????? | | ??????????# ??????????? ???????? | | ??????????? ??????????? ???????? | | ???????????########???????????? ????????? | | ??????????????????????????????? ?????????? | | ??????????????????????????????? ???????????? | | ???????????????????????????????? ? ?????????????? | | ?????????????????????????????????????????????????? | | ?????????????????????????????????????????????????? | | ?????????????????????????????????????????????????? | | ?????????????????????????????????????????????????? | | ?????????????????????????????????????????????????? | | ?????????????????????????????????????????????????? | | ?????????????????????????????????????????????????? | | ?????????????????????????????????????????????????? | | ?????????????????????????????????????????????????? | | ?????????????????????????????????????????????????? | | ?????????????????????????????????????????????????? | | ?????????????????????????????????????????????????? | +----------------------------------------------------+ Best States ------------- Heat Dissipation 91 Energy Generation 65 Energy Capacity 1200 Matter Stores 300 Matter Capacity 300 Sight Range 16 Robot Scan Range 16 Terrain Scan Density 10 Jamming Range 12 Base Temperature (-) 150 Armor Coverage 600 Resistance: KI 20 Resistance: TH 20 Resistance: EX 20 Resistance: EM 35 Resistance: I 20 Resistance: S 20 Resistance: P 20 Propulsion Shielding 33 Utility Shielding 66 Weapon Shielding 66 Phase Shifting 10 Evasion (%) 67 Melee Accuracy 6 Core Analysis 8 Recoil Reduction 1 Particle Charging 20 Offensive Hacking 30 Defensive Hacking 25 Item Schematics ----------------- None Robot Schematics ------------------ None Fabricated ------------ Machine Rigger | x1 | -5/Factory Deep Structural Scanner | x1 | -4/Factory Repaired ---------- Imp. Cryofiber Web | 37% | -5/Factory Studied --------- Cmb. Antigrav System | -2/Quarantine | Hacked Alien Tech Used ----------------- Integrated Dissipator Transdimensional Reconstructor Core Reset Matrix Integrated Reactor LC Capacitor Sigix Broadsword Core Regenerator Sigix Terminator Subatomic Replicator Supercharged Sigix Terminator Achievements -------------- Fist Fight Inventory Pressure Scientist At Large Challenges ------------ None Game ------ Seed ReflexTractorShielding Manual? 0 Play Time 01:47:29 Cumulative 251.6 hours Start 2025.12.25 @ 16:56:20 End 2025.12.25 @ 21:04:58 Sessions 3 Manual Loads 0 Difficulty Adventurer Special Mode None Game No. 192 Rogue 10 Adventurer 182 Explorer 0 Win Type - Total 17 Types 7/0/7/3/0/0/0/0/0/0 Lore% 75 Gallery% 72 Achievement% 57 Wizard Run 0 Options --------- Layout 1 ASCII 0 Keyboard 0 Movement Mouse Keybinds 0 Fullscreen 1 Font 24/Smallcaps Map View 50x35 Zoom Use 0% Tactical HUD 1 Map Filters NONE Filters NONE Steam 1 RUN: c2466ac3-9800-4083-8cca-3bf295392690